[Event "NJSK 2023 Jeugd C"]
[Site "Almelo, Netherlands"]
[Date "2023.05.01"]
[Round "2.3"]
[White "Terlouw, Wouter"]
[Black "Roolvink, William"]
[Result "1/2-1/2"]
[TimeControl "90min/40moves + 30min + 30sec/move"]
[WhiteElo "1923"]
[BlackElo "1852"]

1. d4 {[%clk 01:30:58]} {[%emt 00:00:01]} Nf6 {[%clk 01:30:59]} {[%emt
00:00:01]} 2. Nf3 {[%clk 01:31:23]} {[%emt 00:00:05]} g6 {[%clk 01:31:27]}
{[%emt 00:00:02]} 3. Nc3 {[%clk 01:31:48]} {[%emt 00:00:05]} d5 {[%clk
01:31:33]} {[%emt 00:00:24]} 4. Bf4 {[%clk 01:32:12]} {[%emt 00:00:06]} Bg7
{[%clk 01:31:44]} {[%emt 00:00:19]} 5. e3 {[%clk 01:32:35]} {[%emt 00:00:07]}
O-O {[%clk 01:32:05]} {[%emt 00:00:09]} 6. Be2 {[%clk 01:32:48]} {[%emt
00:00:16]} c5 {[%clk 01:25:14]} {[%emt 00:07:21]} 7. Qd2 {[%clk 01:28:14]}
{[%emt 00:05:05]} Nc6 {[%clk 01:21:58]} {[%emt 00:03:47]} 8. Ne5 {[%clk
01:22:44]} {[%emt 00:05:59]} Ne4 {[%clk 01:03:43]} {[%emt 00:18:44]} 9. Nxe4
{[%clk 01:21:56]} {[%emt 00:01:19]} dxe4 {[%clk 01:03:25]} {[%emt 00:00:48]} 10.
O-O-O {[%clk 01:19:09]} {[%emt 00:03:17]} Nxe5 {[%clk 01:02:47]} {[%emt
00:01:08]} 11. dxe5 {[%clk 01:17:06]} {[%emt 00:02:33]} Be6 {[%clk 00:56:53]}
{[%emt 00:06:25]} 12. Qc3 {[%clk 01:12:53]} {[%emt 00:04:43]} Qc7 {[%clk
00:52:37]} {[%emt 00:04:46]} 13. h4 {[%emt 00:21:42]} a6 {[%clk 00:32:44]}
{[%emt 00:01:20]} 14. Bc4 {[%clk 01:01:48]} {[%emt 00:09:25]} Bxc4 {[%clk
00:23:01]} {[%emt 00:10:13]} 15. Qxc4 {[%clk 01:02:12]} {[%emt 00:00:06]} Bxe5
{[%clk 00:18:30]} {[%emt 00:05:02]} 16. Qxe4 {[%clk 01:02:22]} {[%emt
00:00:19]} Bxf4 {[%clk 00:18:45]} {[%emt 00:00:15]} 17. Qxf4 {[%clk 01:01:24]}
{[%emt 00:01:28]} Qxf4 {[%clk 00:18:59]} {[%emt 00:00:16]} 18. exf4 {[%clk
01:01:51]} {[%emt 00:00:03]} Rad8 {[%clk 00:18:58]} {[%emt 00:00:31]} 19. Rxd8
{[%clk 01:02:15]} {[%emt 00:00:06]} Rxd8 {[%clk 00:19:27]} {[%emt 00:00:02]} 20.
Rd1 {[%clk 01:02:38]} {[%emt 00:00:07]} Rxd1+ {[%clk 00:12:21]} {[%emt
00:07:36]} 21. Kxd1 {[%clk 01:03:06]} {[%emt 00:00:01]} f6 {[%clk 00:10:06]}
{[%emt 00:02:45]} 22. Kd2 {[%clk 00:56:11]} {[%emt 00:07:25]} Kf7 {[%clk
00:09:41]} {[%emt 00:00:56]} 23. Kd3 {[%clk 00:56:25]} {[%emt 00:00:15]} Ke6
{[%clk 00:06:23]} {[%emt 00:03:48]} 24. Kc4 {[%clk 00:56:45]} {[%emt 00:00:10]}
Kd6 {[%clk 00:06:49]} {[%emt 00:00:04]} 25. a4 {[%clk 00:56:39]} {[%emt
00:00:36]} b6 {[%clk 00:07:00]} {[%emt 00:00:19]} 26. g4 {[%clk 00:55:37]}
{[%emt 00:01:32]} f5 {[%clk 00:07:04]} {[%emt 00:00:26]} 27. g5 {[%clk
00:47:58]} {[%emt 00:08:09]} Kc6 {[%clk 00:06:12]} {[%emt 00:01:22]} 28. Kd3
{[%clk 00:41:30]} {[%emt 00:06:58]} Kd5 {[%clk 00:05:51]} {[%emt 00:00:52]} 29.
c4+ {[%clk 00:41:51]} {[%emt 00:00:08]} Kc6 {[%clk 00:05:58]} {[%emt 00:00:23]}
30. b3 {[%clk 00:41:50]} {[%emt 00:00:31]} Kd6 {[%clk 00:04:15]} {[%emt
00:02:13]} 31. Ke3 {[%clk 00:40:59]} {[%emt 00:01:20]} Kd7 {[%emt 00:00:34]} 32.
Kd3 {[%clk 00:40:51]} {[%emt 00:00:37]} Kc6 {[%emt 00:00:45]} 33. Kc2 {[%clk
00:40:39]} {[%emt 00:00:41]} Kd6 {[%clk 00:00:57]} {[%emt 00:03:32]} 34. Kd3
{[%clk 00:40:37]} {[%emt 00:00:32]} e5 {[%clk 00:01:05]} {[%emt 00:00:21]} 35.
Ke3 {[%clk 00:40:52]} {[%emt 00:00:15]} e4 {[%clk 00:01:04]} {[%emt 00:00:32]}
36. f3 {[%clk 00:40:27]} {[%emt 00:00:54]} exf3 {[%clk 00:01:32]} {[%emt
00:00:02]} 37. Kxf3 {[%clk 00:40:51]} {[%emt 00:00:06]} Kc6 {[%clk 00:01:53]}
{[%emt 00:00:10]} 38. Ke3 {[%clk 00:41:16]} {[%emt 00:00:04]} b5 {[%clk
00:02:01]} {[%emt 00:00:23]} 39. Kd3 {[%clk 00:41:08]} {[%emt 00:00:36]} bxa4
{[%clk 00:01:38]} {[%emt 00:00:55]} 40. bxa4 {[%clk 00:41:33]} {[%emt
00:00:05]} Kb6 {[%clk 00:01:58]} {[%emt 00:00:11]} 41. Kc3 {[%clk 00:41:58]}
{[%emt 00:00:04]} Ka5 {[%clk 00:01:57]} {[%emt 00:00:31]} 42. Kb3 {[%clk
00:42:22]} {[%emt 00:00:06]} Kb6 {[%clk 00:02:03]} {[%emt 00:00:24]} 43. Ka3
{[%clk 00:42:44]} {[%emt 00:00:07]} Kc6 {[%clk 00:02:11]} {[%emt 00:00:22]} 44.
a5 {[%clk 00:43:06]} {[%emt 00:00:08]} Kd6 {[%clk 00:02:34]} {[%emt 00:00:08]}
45. Kb3 {[%clk 00:43:28]} {[%emt 00:00:08]} Ke6 {[%clk 00:02:39]} {[%emt
00:00:25]} 46. Kc3 {[%clk 00:43:54]} {[%emt 00:00:04]} Kd6 {[%clk 00:02:17]}
{[%emt 00:00:52]} 1/2-1/2

[Event "NJSK 2023 Jeugd C"]
[Site "Almelo, Netherlands"]
[Date "2023.05.01"]
[Round "2.4"]
[White "Ambrona Navarro, Himar"]
[Black "Madularea, David"]
[Result "0-1"]
[TimeControl "90min/40moves + 30min + 30sec/move"]
[WhiteElo "1834"]
[BlackElo "1895"]

1. d4 {[%clk 01:30:54]} {[%emt 00:00:05]} Nf6 {[%clk 01:30:42]} {[%emt
00:00:18]} 2. Bg5 {[%clk 01:31:06]} {[%emt 00:00:16]} e6 {[%clk 01:31:05]}
{[%emt 00:00:10]} 3. Nd2 {[%clk 01:31:12]} {[%emt 00:00:23]} h6 {[%clk
01:31:10]} {[%emt 00:00:25]} 4. Bh4 {[%clk 01:30:54]} {[%emt 00:00:49]} c5
{[%clk 01:28:06]} {[%emt 00:03:34]} 5. e3 {[%clk 01:29:42]} {[%emt 00:01:41]}
Nc6 {[%clk 01:27:02]} {[%emt 00:01:34]} 6. c3 {[%clk 01:28:29]} {[%emt
00:01:42]} b6 {[%clk 01:18:35]} {[%emt 00:08:58]} 7. Ngf3 {[%clk 01:24:28]}
{[%emt 00:04:28]} Be7 {[%clk 01:15:21]} {[%emt 00:03:47]} 8. Bd3 {[%clk
01:22:11]} {[%emt 00:02:39]} Bb7 {[%clk 01:13:06]} {[%emt 00:02:54]} 9. O-O
{[%clk 01:17:11]} {[%emt 00:05:26]} O-O {[%clk 01:04:52]} {[%emt 00:08:47]} 10.
Re1 {[%clk 01:15:37]} {[%emt 00:02:04]} cxd4 {[%clk 01:02:43]} {[%emt
00:02:39]} 11. cxd4 {[%clk 01:12:00]} {[%emt 00:04:06]} Nb4 {[%clk 01:00:12]}
{[%emt 00:03:02]} 12. Bb1 {[%clk 01:07:20]} {[%emt 00:05:10]} Ba6 {[%clk
00:57:58]} {[%emt 00:02:46]} 13. Bxf6 {[%clk 01:06:34]} {[%emt 00:01:15]} Bxf6
{[%clk 00:56:59]} {[%emt 00:01:29]} 14. Qa4 {[%clk 01:00:44]} {[%emt 00:06:18]}
Be7 {[%clk 00:57:09]} {[%emt 00:00:21]} 15. a3 {[%clk 01:00:28]} {[%emt
00:00:45]} b5 {[%clk 00:57:23]} {[%emt 00:00:18]} 16. Qb3 {[%clk 01:00:28]}
{[%emt 00:00:28]} Nc6 {[%clk 00:56:59]} {[%emt 00:00:55]} 17. Bd3 {[%clk
00:59:43]} {[%emt 00:01:14]} Qb6 {[%clk 00:54:00]} {[%emt 00:03:31]} 18. Rac1
{[%clk 00:57:52]} {[%emt 00:02:20]} Rac8 {[%clk 00:52:52]} {[%emt 00:01:38]} 19.
a4 {[%clk 00:51:17]} {[%emt 00:07:05]} Nb4 {[%clk 00:46:25]} {[%emt 00:06:57]}
20. Bxb5 {[%clk 00:45:16]} {[%emt 00:06:32]} Bxb5 {[%clk 00:46:38]} {[%emt
00:00:17]} 21. axb5 {[%clk 00:45:29]} {[%emt 00:00:16]} Qxb5 {[%clk 00:46:32]}
{[%emt 00:00:37]} 22. Rc3 {[%clk 00:43:42]} {[%emt 00:02:16]} a5 {[%clk
00:38:52]} {[%emt 00:08:10]} 23. Ra1 {[%clk 00:40:04]} {[%emt 00:04:06]} d5
{[%clk 00:29:21]} {[%emt 00:10:04]} 24. Ne5 {[%clk 00:36:47]} {[%emt 00:03:45]}
Bd6 {[%clk 00:27:37]} {[%emt 00:02:16]} 25. Ndf3 {[%clk 00:35:30]} {[%emt
00:01:35]} Ra8 {[%clk 00:22:10]} {[%emt 00:06:09]} 26. Qa4 {[%clk 00:31:16]}
{[%emt 00:04:42]} Qe2 {[%clk 00:21:08]} {[%emt 00:01:33]} 27. Rb1 {[%clk
00:30:12]} {[%emt 00:01:32]} Rfd8 {[%clk 00:18:24]} {[%emt 00:03:16]} 28. Nc6
{[%clk 00:27:40]} {[%emt 00:03:01]} Nxc6 {[%clk 00:17:30]} {[%emt 00:01:26]} 29.
Rxc6 {[%clk 00:27:28]} {[%emt 00:00:40]} g6 {[%clk 00:16:39]} {[%emt 00:01:22]}
30. Qc2 {[%clk 00:22:48]} {[%emt 00:05:10]} Qxc2 {[%clk 00:15:57]} {[%emt
00:01:13]} 31. Rxc2 {[%clk 00:23:09]} {[%emt 00:00:07]} Rdc8 {[%clk 00:16:21]}
{[%emt 00:00:07]} 32. Rbc1 {[%clk 00:22:53]} {[%emt 00:00:46]} Rxc2 {[%clk
00:16:45]} 33. Rxc2 {[%clk 00:23:12]} {[%emt 00:00:17]} Rb8 {[%clk 00:15:27]}
{[%emt 00:01:49]} 34. Kf1 {[%clk 00:22:47]} {[%emt 00:00:54]} Kf8 {[%clk
00:15:21]} {[%emt 00:00:37]} 35. Ke2 {[%clk 00:22:03]} {[%emt 00:01:13]} Ke7
{[%clk 00:14:16]} {[%emt 00:01:35]} 36. Ne5 {[%clk 00:20:52]} {[%emt 00:01:41]}
Bxe5 {[%clk 00:12:56]} {[%emt 00:01:51]} 37. dxe5 {[%clk 00:21:09]} {[%emt
00:00:13]} Kd7 {[%clk 00:13:20]} {[%emt 00:00:06]} 38. Kd2 {[%clk 00:20:14]}
{[%emt 00:01:24]} Rb4 {[%clk 00:12:56]} {[%emt 00:00:55]} 39. f4 {[%clk
00:20:02]} {[%emt 00:00:41]} h5 {[%clk 00:12:39]} {[%emt 00:00:47]} 40. Kc1
{[%clk 00:18:59]} {[%emt 00:01:34]} a4 {[%clk 00:07:32]} {[%emt 00:05:37]} 41.
Rc3 {[%clk 00:18:40]} {[%emt 00:00:48]} h4 {[%clk 00:06:50]} {[%emt 00:01:12]}
42. Kb1 {[%clk 00:18:01]} {[%emt 00:01:09]} g5 {[%clk 00:05:55]} {[%emt
00:01:26]} 43. g3 {[%clk 00:17:28]} {[%emt 00:01:02]} Ke7 {[%clk 00:04:15]}
{[%emt 00:02:10]} 44. Rd3 {[%clk 00:15:24]} {[%emt 00:02:33]} Kf8 {[%clk
00:03:30]} {[%emt 00:01:17]} 45. Ka2 {[%clk 00:13:36]} {[%emt 00:02:17]} Kg7
{[%clk 00:03:51]} {[%emt 00:00:09]} 46. Rd4 {[%clk 00:11:46]} {[%emt 00:02:21]}
Rb3 {[%clk 00:04:02]} {[%emt 00:00:19]} 47. e4 {[%clk 00:09:23]} {[%emt
00:02:52]} dxe4 {[%clk 00:04:06]} {[%emt 00:00:26]} 48. Rxe4 {[%clk 00:09:18]}
{[%emt 00:00:34]} gxf4 {[%clk 00:03:12]} {[%emt 00:01:26]} 49. Rxf4 {[%clk
00:08:38]} {[%emt 00:01:09]} hxg3 {[%clk 00:03:38]} {[%emt 00:00:04]} 50. Rg4+
{[%clk 00:08:32]} {[%emt 00:00:37]} Kf8 {[%clk 00:03:37]} {[%emt 00:00:31]} 51.
hxg3 {[%clk 00:08:15]} {[%emt 00:00:46]} Re3 {[%clk 00:03:28]} {[%emt
00:00:39]} 52. Rxa4 {[%clk 00:07:43]} {[%emt 00:01:02]} Rxe5 {[%clk 00:03:54]}
{[%emt 00:00:04]} 53. Ra3 {[%clk 00:07:37]} {[%emt 00:00:35]} Rb5 {[%clk
00:03:57]} {[%emt 00:00:27]} 54. Re3 {[%clk 00:07:46]} {[%emt 00:00:20]} Ke7
{[%clk 00:03:35]} {[%emt 00:00:53]} 55. Ka3 {[%clk 00:08:00]} {[%emt 00:00:16]}
Kd6 {[%clk 00:03:47]} {[%emt 00:00:19]} 56. b4 {[%clk 00:08:09]} {[%emt
00:00:20]} Kd5 {[%clk 00:03:56]} {[%emt 00:00:22]} 57. Ka4 {[%clk 00:08:27]}
{[%emt 00:00:11]} Rb8 {[%clk 00:04:23]} {[%emt 00:00:05]} 58. Rc3 {[%clk
00:07:13]} {[%emt 00:01:41]} Ra8+ {[%clk 00:04:29]} {[%emt 00:00:26]} 59. Kb3
{[%clk 00:07:32]} {[%emt 00:00:11]} Rb8 {[%clk 00:04:21]} {[%emt 00:00:38]} 60.
Rc5+ {[%clk 00:07:08]} {[%emt 00:00:53]} Kd4 {[%clk 00:04:22]} {[%emt
00:00:30]} 61. Ka4 {[%clk 00:07:22]} {[%emt 00:00:14]} e5 {[%clk 00:04:40]}
{[%emt 00:00:15]} 62. Rc7 {[%clk 00:07:02]} {[%emt 00:00:49]} Ra8+ {[%clk
00:04:48]} {[%emt 00:00:23]} 63. Kb5 {[%clk 00:07:24]} {[%emt 00:00:06]} Rb8+
{[%clk 00:05:07]} {[%emt 00:00:13]} 64. Ka5 {[%clk 00:07:47]} {[%emt 00:00:05]}
Ra8+ {[%clk 00:05:34]} {[%emt 00:00:06]} 65. Kb5 {[%clk 00:08:12]} {[%emt
00:00:04]} f5 {[%clk 00:04:36]} {[%emt 00:01:28]} 66. Rd7+ {[%clk 00:08:20]}
{[%emt 00:00:22]} Ke4 {[%clk 00:04:46]} {[%emt 00:00:19]} 67. Kc5 {[%clk
00:08:12]} {[%emt 00:00:39]} Rg8 {[%clk 00:05:00]} {[%emt 00:00:17]} 68. b5
{[%clk 00:07:22]} {[%emt 00:01:19]} Rxg3 {[%clk 00:05:25]} {[%emt 00:00:04]} 69.
b6 {[%clk 00:07:50]} {[%emt 00:00:04]} Rb3 {[%clk 00:05:29]} {[%emt 00:00:25]}
70. Kc6 {[%clk 00:08:06]} {[%emt 00:00:13]} f4 {[%clk 00:05:54]} {[%emt
00:00:05]} 71. b7 {[%clk 00:08:29]} {[%emt 00:00:07]} f3 {[%clk 00:05:55]}
{[%emt 00:00:29]} 72. Rf7 {[%clk 00:08:37]} {[%emt 00:00:22]} Ke3 {[%clk
00:06:19]} {[%emt 00:00:07]} 73. Kc7 {[%clk 00:08:53]} {[%emt 00:00:14]} e4
{[%clk 00:06:00]} {[%emt 00:00:49]} 74. Rg7 {[%clk 00:07:21]} {[%emt 00:02:01]}
Ke2 {[%emt 00:00:47]} 75. Re7 {[%clk 00:04:27]} {[%emt 00:03:22]} e3 {[%clk
00:06:06]} {[%emt 00:00:09]} 76. Re6 {[%clk 00:04:35]} {[%emt 00:00:21]} Rxb7+
{[%clk 00:06:29]} {[%emt 00:00:08]} 77. Kxb7 {[%clk 00:04:34]} {[%emt
00:00:31]} f2 {[%clk 00:06:55]} {[%emt 00:00:04]} 0-1

[Event "NJSK 2023 Jeugd C"]
[Site "Almelo, Netherlands"]
[Date "2023.05.01"]
[Round "2.5"]
[White "Kurt, Sascha"]
[Black "Katpatal, Akshaj"]
[Result "1-0"]
[TimeControl "90min/40moves + 30min + 30sec/move"]
[WhiteElo "1894"]
[BlackElo "1840"]

1. e4 {[%clk 01:30:57]} {[%emt 00:00:02]} e5 {[%clk 01:30:47]} {[%emt
00:00:14]} 2. Nf3 {[%clk 01:31:18]} {[%emt 00:00:08]} Nc6 {[%clk 01:30:54]}
{[%emt 00:00:23]} 3. Bc4 {[%clk 01:31:37]} {[%emt 00:00:11]} Bc5 {[%clk
01:31:17]} {[%emt 00:00:08]} 4. c3 {[%clk 01:31:59]} {[%emt 00:00:08]} Nf6
{[%clk 01:31:40]} {[%emt 00:00:06]} 5. d4 {[%clk 01:32:20]} {[%emt 00:00:09]}
exd4 {[%clk 01:32:05]} {[%emt 00:00:06]} 6. e5 {[%clk 01:32:42]} {[%emt
00:00:07]} Ne4 {[%clk 01:31:40]} {[%emt 00:00:55]} 7. Bd5 {[%clk 01:32:49]}
{[%emt 00:00:23]} f5 {[%clk 01:31:58]} {[%emt 00:00:12]} 8. cxd4 {[%clk
01:32:53]} {[%emt 00:00:26]} Bb4+ {[%clk 01:32:04]} {[%emt 00:00:25]} 9. Bd2
{[%clk 01:32:14]} {[%emt 00:01:08]} Nxd2 {[%clk 01:26:12]} {[%emt 00:06:23]} 10.
Nbxd2 {[%clk 01:32:33]} {[%emt 00:00:11]} Qe7 {[%clk 01:13:31]} {[%emt
00:13:11]} 11. O-O {[%clk 01:27:54]} {[%emt 00:05:08]} b6 {[%clk 01:12:40]}
{[%emt 00:01:22]} 12. Rc1 {[%clk 01:10:09]} {[%emt 00:18:14]} Bxd2 {[%clk
00:56:13]} {[%emt 00:16:58]} 13. Rxc6 {[%clk 01:05:33]} {[%emt 00:05:06]} Bb7
{[%clk 00:51:39]} {[%emt 00:05:04]} 14. Re6 {[%clk 01:04:41]} {[%emt 00:01:21]}
dxe6 {[%clk 00:49:59]} {[%emt 00:02:10]} 15. Bxb7 {[%clk 01:04:41]} {[%emt
00:00:31]} Rd8 {[%clk 00:49:39]} {[%emt 00:00:50]} 16. Bc6+ {[%clk 01:04:32]}
{[%emt 00:00:39]} Kf7 {[%clk 00:49:51]} {[%emt 00:00:18]} 17. Qxd2 {[%clk
01:04:34]} {[%emt 00:00:27]} h6 {[%clk 00:48:44]} {[%emt 00:01:38]} 18. Qc3
{[%clk 00:57:56]} {[%emt 00:07:07]} g5 {[%clk 00:43:02]} {[%emt 00:06:13]} 19.
d5 {[%clk 00:56:34]} {[%emt 00:01:52]} Qc5 {[%clk 00:35:39]} {[%emt 00:07:52]}
20. Nd4 {[%clk 00:41:46]} {[%emt 00:15:18]} exd5 {[%clk 00:30:19]} {[%emt
00:05:51]} 21. e6+ {[%clk 00:35:04]} {[%emt 00:07:11]} Kf6 {[%emt 00:00:07]} 22.
Qd3 {[%clk 00:27:39]} {[%emt 00:07:53]} Rdf8 {[%clk 00:25:58]} {[%emt
00:05:15]} 23. Qxf5+ {[%clk 00:25:27]} {[%emt 00:02:43]} Ke7 {[%clk 00:26:22]}
{[%emt 00:00:07]} 24. Qe5 {[%clk 00:25:26]} {[%emt 00:00:30]} Qd6 {[%clk
00:26:31]} {[%emt 00:00:21]} 25. Qg7+ {[%clk 00:25:24]} {[%emt 00:00:32]} Kd8
{[%clk 00:26:56]} {[%emt 00:00:06]} 26. Bb5 {[%clk 00:24:31]} {[%emt 00:01:23]}
Kc8 {[%clk 00:26:13]} {[%emt 00:01:14]} 27. e7 {[%clk 00:23:05]} {[%emt
00:01:55]} Rfg8 {[%clk 00:26:35]} {[%emt 00:00:08]} 28. Qf7 {[%clk 00:22:31]}
{[%emt 00:01:03]} Qf4 {[%clk 00:26:28]} {[%emt 00:00:38]} 29. Qe6+ {[%clk
00:22:44]} {[%emt 00:00:17]} Kb8 {[%clk 00:26:52]} {[%emt 00:00:06]} 30. Nc6+
{[%clk 00:22:27]} {[%emt 00:00:46]} Ka8 {[%clk 00:27:16]} {[%emt 00:00:06]} 31.
Qxd5 {[%clk 00:22:35]} {[%emt 00:00:23]} Qd6 {[%clk 00:27:27]} {[%emt
00:00:19]} 32. Qxd6 {[%clk 00:20:20]} {[%emt 00:02:46]} cxd6 {[%clk 00:27:50]}
{[%emt 00:00:06]} 33. Nd4 {[%clk 00:20:40]} {[%emt 00:00:09]} Kb7 {[%clk
00:28:12]} {[%emt 00:00:09]} 34. Re1 {[%clk 00:20:46]} {[%emt 00:00:23]} a6
{[%clk 00:28:22]} {[%emt 00:00:21]} 35. e8=Q {[%clk 00:20:54]} {[%emt
00:00:23]} Rxe8 {[%clk 00:28:45]} {[%emt 00:00:07]} 36. Rxe8 {[%clk 00:21:13]}
{[%emt 00:00:10]} 1-0

[Event "NJSK 2023 Jeugd C"]
[Site "Almelo, Netherlands"]
[Date "2023.05.01"]
[Round "2.6"]
[White "Arnold, Rhys"]
[Black "Aravindhan, Achyuth"]
[Result "1-0"]
[TimeControl "90min/40moves + 30min + 30sec/move"]
[WhiteElo "2003"]
[BlackElo "1833"]

1. e4 {[%clk 01:30:44]} {[%emt 00:00:17]} c5 {[%clk 01:30:51]} {[%emt
00:00:09]} 2. Nf3 {[%clk 01:30:47]} {[%emt 00:00:26]} Nc6 {[%clk 01:31:10]}
{[%emt 00:00:11]} 3. Bb5 {[%clk 01:31:14]} {[%emt 00:00:03]} g6 {[%clk
01:31:27]} {[%emt 00:00:14]} 4. O-O {[%clk 01:31:39]} {[%emt 00:00:04]} Bg7
{[%clk 01:31:34]} {[%emt 00:00:23]} 5. Nc3 {[%clk 01:31:59]} {[%emt 00:00:06]}
d6 {[%clk 01:30:57]} {[%emt 00:01:10]} 6. e5 {[%clk 01:32:00]} {[%emt
00:00:31]} Bd7 {[%clk 01:26:39]} {[%emt 00:04:48]} 7. exd6 {[%clk 01:23:55]}
{[%emt 00:08:34]} exd6 {[%clk 01:26:32]} {[%emt 00:00:36]} 8. Bxc6 {[%clk
01:17:47]} {[%emt 00:06:37]} Bxc6 {[%clk 01:19:54]} {[%emt 00:07:10]} 9. d4
{[%clk 01:12:32]} {[%emt 00:05:46]} Ne7 {[%clk 01:14:11]} {[%emt 00:06:12]} 10.
d5 {[%clk 00:58:46]} {[%emt 00:14:17]} Bd7 {[%clk 01:14:07]} {[%emt 00:00:32]}
11. Bf4 {[%clk 00:57:10]} {[%emt 00:02:07]} Bxc3 {[%clk 01:08:22]} {[%emt
00:06:15]} 12. bxc3 {[%clk 00:57:08]} {[%emt 00:00:32]} Bg4 {[%clk 01:08:37]}
{[%emt 00:00:15]} 13. h3 {[%clk 00:50:31]} {[%emt 00:07:07]} Bxf3 {[%clk
01:08:30]} {[%emt 00:00:36]} 14. Qxf3 {[%clk 00:50:57]} {[%emt 00:00:04]} O-O
{[%clk 01:08:11]} {[%emt 00:00:48]} 15. Rfe1 {[%clk 00:43:59]} {[%emt
00:07:29]} Qd7 {[%clk 00:56:45]} {[%emt 00:11:55]} 16. Bg5 {[%clk 00:39:30]}
{[%emt 00:05:01]} Rfe8 {[%clk 00:54:24]} {[%emt 00:02:51]} 17. Rxe7 {[%clk
00:35:28]} {[%emt 00:04:32]} Rxe7 {[%clk 00:53:41]} {[%emt 00:01:13]} 18. Qf6
{[%clk 00:35:47]} {[%emt 00:00:10]} Re6 {[%clk 00:51:30]} {[%emt 00:02:41]} 19.
dxe6 {[%clk 00:36:09]} {[%emt 00:00:09]} Qxe6 {[%clk 00:51:55]} {[%emt
00:00:05]} 20. Qxe6 {[%clk 00:34:48]} {[%emt 00:01:51]} fxe6 {[%clk 00:52:23]}
{[%emt 00:00:02]} 21. Be7 {[%clk 00:34:57]} {[%emt 00:00:21]} 1-0

[Event "NJSK 2023 Jeugd C"]
[Site "Almelo, Netherlands"]
[Date "2023.05.01"]
[Round "2.7"]
[White "De Wit, Evan"]
[Black "Zecha, Oscar"]
[Result "0-1"]
[TimeControl "90min/40moves + 30min + 30sec/move"]
[WhiteElo "1563"]
[BlackElo "1879"]

1. e4 {[%clk 01:30:55]} {[%emt 00:00:05]} e5 {[%clk 01:30:59]} 2. Nf3 {[%clk
01:31:17]} {[%emt 00:00:08]} Nc6 {[%clk 01:31:28]} {[%emt 00:00:01]} 3. Bb5
{[%clk 01:31:41]} {[%emt 00:00:07]} Nf6 {[%clk 01:31:56]} {[%emt 00:00:02]} 4.
O-O {[%clk 01:32:02]} {[%emt 00:00:09]} Nxe4 {[%clk 01:32:23]} {[%emt
00:00:02]} 5. Re1 {[%clk 01:32:24]} {[%emt 00:00:08]} Nd6 {[%clk 01:32:51]}
{[%emt 00:00:02]} 6. Nxe5 {[%clk 01:32:43]} {[%emt 00:00:11]} Be7 {[%clk
01:33:18]} {[%emt 00:00:02]} 7. Bf1 {[%clk 01:33:01]} {[%emt 00:00:13]} Nf5
{[%clk 01:33:38]} {[%emt 00:00:10]} 8. Nf3 {[%clk 01:33:22]} {[%emt 00:00:09]}
O-O {[%clk 01:33:49]} {[%emt 00:00:19]} 9. d4 {[%clk 01:33:42]} {[%emt
00:00:10]} d5 {[%clk 01:34:17]} {[%emt 00:00:02]} 10. c3 {[%clk 01:33:59]}
{[%emt 00:00:13]} Bd6 {[%clk 01:33:12]} {[%emt 00:01:35]} 11. Bd3 {[%clk
01:32:36]} {[%emt 00:01:52]} Re8 {[%clk 01:30:34]} {[%emt 00:03:09]} 12. Bg5
{[%clk 01:30:39]} {[%emt 00:02:25]} f6 {[%clk 01:30:13]} {[%emt 00:00:53]} 13.
Be3 {[%clk 01:30:40]} {[%emt 00:00:29]} Nxe3 {[%clk 01:20:28]} {[%emt
00:10:16]} 14. fxe3 {[%clk 01:31:01]} {[%emt 00:00:08]} f5 {[%clk 01:20:24]}
{[%emt 00:00:34]} 15. Qc2 {[%clk 01:29:08]} {[%emt 00:02:23]} Qf6 {[%clk
01:18:23]} {[%emt 00:02:32]} 16. Qb3 {[%clk 01:28:44]} {[%emt 00:00:53]} Ne7
{[%clk 01:17:15]} {[%emt 00:01:38]} 17. Nbd2 {[%clk 01:27:21]} {[%emt
00:01:53]} Kh8 {[%clk 01:16:50]} {[%emt 00:00:55]} 18. c4 {[%clk 01:26:31]}
{[%emt 00:01:19]} c6 {[%clk 01:16:48]} {[%emt 00:00:33]} 19. Rf1 {[%clk
01:26:28]} {[%emt 00:00:33]} Qh6 {[%clk 01:08:43]} {[%emt 00:08:35]} 20. Rae1
{[%clk 01:25:24]} {[%emt 00:01:32]} b6 {[%clk 01:08:41]} {[%emt 00:00:35]} 21.
Qc2 {[%clk 01:22:52]} {[%emt 00:03:01]} g6 {[%clk 01:07:45]} {[%emt 00:01:26]}
22. cxd5 {[%clk 01:22:58]} {[%emt 00:00:24]} cxd5 {[%clk 01:07:15]} {[%emt
00:01:00]} 23. Bb5 {[%clk 01:21:36]} {[%emt 00:01:52]} Rf8 {[%clk 01:06:36]}
{[%emt 00:01:10]} 24. Bc6 {[%clk 01:21:07]} {[%emt 00:00:58]} Rb8 {[%clk
01:06:16]} {[%emt 00:00:51]} 25. Ne5 {[%clk 01:20:34]} {[%emt 00:01:02]} Bxe5
{[%clk 01:04:43]} {[%emt 00:02:03]} 26. dxe5 {[%clk 01:21:02]} {[%emt
00:00:02]} Ba6 {[%clk 01:05:12]} 27. Rf4 {[%clk 01:19:52]} {[%emt 00:01:40]}
Rbc8 {[%clk 01:05:27]} {[%emt 00:00:15]} 28. Qa4 {[%clk 01:19:55]} {[%emt
00:00:27]} Nxc6 {[%clk 01:04:37]} {[%emt 00:01:20]} 29. Qxa6 {[%clk 01:20:07]}
{[%emt 00:00:18]} Nxe5 {[%clk 01:05:05]} {[%emt 00:00:02]} 30. Rd4 {[%clk
01:18:36]} {[%emt 00:02:01]} Ng4 {[%clk 01:03:31]} {[%emt 00:02:04]} 31. h3
{[%clk 01:18:47]} {[%emt 00:00:19]} Nxe3 {[%clk 01:03:15]} {[%emt 00:00:46]} 32.
Rd3 {[%clk 01:18:38]} {[%emt 00:00:37]} f4 {[%clk 00:57:59]} {[%emt 00:05:48]}
33. Qxa7 {[%clk 01:17:23]} {[%emt 00:01:45]} Qg5 {[%clk 00:57:46]} {[%emt
00:00:43]} 34. g4 {[%clk 01:15:46]} {[%emt 00:02:06]} Qh4 {[%clk 00:30:11]}
{[%emt 00:52:26]} 0-1